[Event "FTX Crypto Cup MCCT 2022"]
[Site "Miami"]
[Date "2022.08.11"]
[Round "1.2"]
[White "Firouzja, Alireza"]
[Black "Praggnanandhaa R"]
[Result "1-0"]
[ECO "B31"]
[WhiteElo "2793"]
[BlackElo "2648"]
[Annotator "TA"]
[PlyCount "83"]
[EventDate "2022.08.10"]
[EventType "tourn"]
[EventCountry "USA"]
[SourceTitle "playchess.com"]
[Source "ChessBase"]
[SourceQuality "1"]
[TimeControl "900+10"]

{[%evp 10,83,15,23,27,14,10,12,12,18,21,18,20,8,43,0,28,25,12,13,14,20,14,15,16,27,17,13,21,18,19,0,0,0,10,0,0,0,0,0,9,0,56,58,54,54,58,60,62,56,70,0,0,0,77,0,0,-112,423,418,389,211,476,458,552,271,275,268,271,270,258,263,361,356,340,343]} 1. e4 {[%emt 0:00:00]} c5 {[%emt 0:00:00]} 2. Nf3 {[%emt 0:00:02]} Nc6 {[%emt 0:00:01]} 3. Bb5 {[%emt 0:00:01]} g6 {[%emt 0:00:02]} 4. Bxc6 {[%emt 0:00:02]} bxc6 {[%emt 0:00:01]} 5. O-O {[%emt 0:00:09]} Bg7 {[%emt 0:00:01]} 6. Re1 {[%emt 0:00:02]} Qc7 {[%emt 0:00:15] B31: Sicilian: 2...Nc6 3 Bb5 g6.} 7. d3 {[%emt 0:00:04]} e5 {[%emt 0:00:11]} 8. c3 {[%emt 0:00:05]} Nf6 {[%emt 0:00:01] The position is equal.} 9. d4 {[%emt 0:00:01]} cxd4 {[%emt 0:00:01]} 10. cxd4 {[%emt 0:00:01]} exd4 {[%emt 0:00:00]} 11. Qxd4 {[%emt 0:00:03]} O-O $1 {[%emt 0:00:05]} 12. Nc3 {[%emt 0:00:01] Inhibits d5.} (12. Bg5 {keeps more tension.} Ng4 13. Qd2 Ne5 14. Nxe5 Bxe5 15. h3) 12... Qb6 {[%emt 0:00:02] [#]} (12... d5 $5) 13. Qxb6 $146 {[%emt 0:00:36]} ({Predecessor:} 13. e5 Qxd4 14. Nxd4 Ng4 15. Bf4 f6 16. e6 dxe6 17. Nxe6 Bxe6 18. Rxe6 g5 19. Bd6 {½-½ (69) Swiercz,D (2647)-Lenderman,A (2607) Saint Louis 2021}) 13... axb6 {[%emt 0:00:01]} 14. e5 {[%emt 0:00:01]} Ne8 {[%emt 0:00:04][%cal Bf6e8,Be8g7,Bg7f5][%mdl 32]} 15. Be3 {[%emt 0:00:07]} Ra6 {[%emt 0:00:03]} 16. Rad1 {[%emt 0:01:20]} f6 {[%emt 0:00:44]} 17. Bf4 {[%emt 0:00:55]} fxe5 {[%emt 0:01:54]} 18. Bxe5 {[%emt 0:00:02]} d5 {[%emt 0:00:24]} 19. Bxg7 {[%emt 0:00:40]} Nxg7 {[%emt 0:00:13]} 20. Ne5 {[%emt 0:00:18] Inhibits Bg4.} Bb7 {[%emt 0:02:14]} 21. a3 {[%emt 0:00:11]} Nf5 {[%emt 0:00:25]} 22. h3 {[%emt 0:01:28]} d4 {[%emt 0:02:36]} 23. Ne4 {[%emt 0:00:10] Pair of Knights!} c5 {[%emt 0:00:13]} 24. Ng5 {[%emt 0:00:01]} Bc8 {[%emt 0:00:57] Prevents Nd7.} 25. Rc1 {[%emt 0:03:23]} Ra7 {[%emt 0:04:04]} (25... Nh4 $1 $11) 26. b4 $14 {[%emt 0:00:44]} Rxa3 {[%emt 0:00:19]} 27. bxc5 {[%emt 0:00:08]} d3 {[%emt 0:00:55] [#] ...d2 is the strong threat.} 28. Rcd1 {[%emt 0:01:41]} (28. cxb6 $2 d2 29. Rf1 dxc1=N $19) 28... bxc5 {[%emt 0:00:13]} 29. Nxd3 {[%emt 0:00:15]} c4 {[%emt 0:00:10]} 30. Ne5 {[%emt 0:00:09]} (30. Nc5 $1 $14) 30... c3 $11 {[%emt 0:00:26]} 31. Rd5 {[%emt 0:00:32]} c2 {[%emt 0:01:33]} (31... Ra2 $1 $11 32. Rc5 Nd4) 32. Rc5 {[%emt 0:02:29]} ({White should play} 32. Rd2 $16) 32... Nd4 {[%emt 0:00:07] Strongly threatening ...Bf5.} 33. Rc7 {[%emt 0:00:08]} (33. Nef3 $11 {keeps the balance.} Nxf3+ 34. Nxf3) 33... Ba6 $2 {[%emt 0:01:35][%mdl 8192] [#] Black cannot hold the game after this.} (33... Rb3 $17 {and life is bright.} 34. Ngf3 Rb1 35. Rxc2 Rxe1+ 36. Nxe1 Nxc2 37. Nxc2 Rd8) 34. Ng4 $1 $18 {[%emt 0:00:41]} ({Inferior is} 34. Nxh7 Rb3 35. Ng4 (35. Nxf8 Rb1 $11) 35... Rf7 36. Nhf6+ Kg7 37. Ne8+ Kf8 38. Rxf7+ Kxf7 39. Nd6+ Kg8 40. Re8+ Kh7 41. Re7+ Kh8 42. Re8+ Kh7 43. Re7+ Kh8 44. Re8+ Kh7 $11) 34... Nf5 {[%emt 0:00:47] Prevents Nh6+.} (34... Ne2+ $2 35. Kh2 Rf5 36. Nh6+ Kf8 37. Nxh7+ Ke8 38. Nxf5 gxf5 39. Rxc2 $18) 35. Rxc2 {[%emt 0:00:54]} (35. Kh2 $142 {[%cal Oe1e8] Threatening mate with Re8!} Bb5 36. Ne6 (36. Nxh7 Rf7 $16) (36. Rxh7 Ra6 $11)) 35... Rb3 $2 {[%emt 0:00:03]} (35... h6) 36. Rc6 {[%emt 0:00:14]} Bb5 {[%emt 0:00:18]} 37. Nf6+ {[%emt 0:00:11]} (37. Rc7 $142 Ra3 38. Rxh7) 37... Kh8 {[%emt 0:00:09]} 38. Nfxh7 {[%emt 0:01:16] Hoping for Rc7.} Bxc6 {[%emt 0:00:06]} 39. Nxf8 {[%emt 0:00:01]} Kg7 {[%emt 0:00:09]} 40. Nfe6+ {[%emt 0:00:12]} Kh6 {[%emt 0:00:05]} 41. Nf7+ {[%emt 0:00:14]} Kh7 {[%emt 0:00:15]} 42. Ne5 {[%emt 0:00:03] Weighted Error Value: White=0.25 (precise) /Black=0.43} 1-0

[Event "FTX Crypto Cup MCCT 2022"]
[Site "Miami"]
[Date "2022.08.11"]
[Round "1.2"]
[White "Duda, Jan-Krzysztof"]
[Black "Niemann, Hans Moke"]
[Result "1-0"]
[ECO "B33"]
[WhiteElo "2750"]
[BlackElo "2688"]
[Annotator "TA"]
[PlyCount "117"]
[EventDate "2022.08.10"]
[EventType "tourn"]
[EventCountry "USA"]
[SourceTitle "playchess.com"]
[Source "ChessBase"]
[SourceQuality "1"]
[TimeControl "900+10"]

{[%evp 20,117,40,40,122,66,58,70,74,77,66,73,59,54,60,33,105,94,97,107,144,25,25,26,33,0,0,0,37,55,44,12,13,11,27,20,14,24,35,42,83,95,143,127,393,26,389,402,378,349,322,264,535,460,1220,1185,1284,1170,1392,600,604,604,600,620,1112,593,866,850,3683,3427,29987,1985,29981,1546,1430,843,1023,652,2034,2032,3018,3116,29985,2943,29995,29989,29989,29987,29987,29986,29986,29987,29987,29988,29988,29989,29989,29990,29990,29991]} 1. e4 {[%emt 0:00:00]} c5 {[%emt 0:00:00]} 2. Nf3 {[%emt 0:00:03]} Nc6 {[%emt 0:00:01]} 3. d4 {[%emt 0:00:02]} cxd4 {[%emt 0:00:01]} 4. Nxd4 {[%emt 0:00:00]} Nf6 {[%emt 0:00:01]} 5. Nc3 {[%emt 0:00:01]} e5 {[%emt 0:00:01]} 6. Ndb5 {[%emt 0:00:01]} d6 {[%emt 0:00:01]} 7. Bg5 {[%emt 0:00:09]} a6 {[%emt 0:00:01]} 8. Na3 {[%emt 0:00:09]} b5 {[%emt 0:00:01]} 9. Bxf6 {[%emt 0:00:02]} gxf6 {[%emt 0:00:01][%cal Bg7f6,Bf6f5][%mdl 32]} 10. Nd5 {[%emt 0:00:01]} f5 {[%emt 0:00:03]} 11. c3 {[%emt 0:00:36]} Be6 {[%emt 0:00:03] [#] B33: Sicilian: Pelikan and Sveshnikov Variations.} (11... Bg7 $14) 12. Nxb5 $5 {[%emt 0:00:21][%mdl 4] Leaves trodden paths.} axb5 $14 {[%emt 0:00:03]} 13. Bxb5 {[%emt 0:00:00]} Rc8 {[%emt 0:00:30] White is slightly better.} 14. Qa4 {[%emt 0:00:05]} Bd7 {[%emt 0:00:03]} 15. exf5 {[%emt 0:00:03] [#]} Bg7 $146 {[%emt 0:00:02]} ({Predecessor:} 15... Be7 16. O-O Rg8 17. f4 Bf6 18. Rae1 Nb8 19. Bxd7+ Nxd7 20. Nxf6+ Qxf6 21. fxe5 dxe5 {1-0 (62) Porta Tovar,G (1648)-Bover de la Cruz,P Llinars del Valles 2010}) 16. O-O {[%emt 0:00:37][%mdl 1024] White has compensation.} O-O $1 {[%emt 0:00:03]} 17. Qe4 {[%emt 0:00:07] Strongly threatening a4.} f6 {[%emt 0:03:15]} (17... Re8 $1 $14) 18. Rfd1 $16 {[%emt 0:00:42]} Ne7 {[%emt 0:00:32]} 19. a4 {[%emt 0:00:29]} Rb8 {[%emt 0:00:58]} (19... Nxf5 $2 20. Bxd7 Qxd7 21. Qxf5 $3 {[%mdl 512]} Qxf5 22. Ne7+ Kf7 23. Nxf5 $18) 20. c4 {[%emt 0:02:57] White is much more active.} (20. Bxd7 $1 $16 Qxd7 21. b4) 20... Kh8 $1 $11 {[%emt 0:01:07]} (20... Nxf5 $2 21. Bxd7 Qxd7 22. Qxf5 $3 {[%mdl 512]} Qxf5 23. Ne7+ Kf7 24. Nxf5 $18) 21. Nxe7 {[%emt 0:02:32]} Qxe7 {[%emt 0:00:04]} 22. Ra3 {[%emt 0:00:00]} Bc8 {[%emt 0:00:39][%cal Bd7c8,Bc8b7,Bb7a8][%mdl 32]} 23. Rh3 {[%emt 0:00:26]} Bb7 {[%emt 0:00:12]} 24. Qh4 {[%emt 0:00:00][%csl Gh3][%cal Rh4h7]} h6 {[%emt 0:00:10]} 25. Rhd3 {[%emt 0:01:17]} Rfd8 {[%emt 0:00:21]} 26. h3 {[%emt 0:00:08]} Ba8 {[%emt 0:00:13]} 27. b4 {[%emt 0:00:53]} e4 {[%emt 0:00:17]} 28. Rd4 {[%emt 0:01:16]} Qe5 $1 {[%emt 0:00:05]} 29. c5 {[%emt 0:00:49][%cal Rd4d6]} d5 {[%emt 0:00:26]} 30. Qg4 {[%emt 0:00:31] Black is now going downhill.} Rbc8 {[%emt 0:00:09]} ({Black should play} 30... Qc7) 31. a5 $16 {[%emt 0:00:29]} Rc7 $2 {[%emt 0:00:06][%mdl 8192] [#]} (31... Qc7 $16 {was necessary.}) 32. Be2 $2 {[%emt 0:00:06]} (32. Rxe4 $3 $18 {[%mdl 512]} Qc3 33. Re3) 32... Bf8 $2 {[%emt 0:00:06][%mdl 8192] [#]} (32... Rb8 $11) 33. Rxe4 $3 $18 {[%emt 0:00:19][%mdl 576] Pin} Qb2 {[%emt 0:00:40]} 34. Bf1 {[%emt 0:00:29]} Rb8 {[%emt 0:02:35]} 35. Re2 {[%emt 0:01:17]} Qa3 {[%emt 0:02:58]} (35... Qxb4 36. Qxb4 Rxb4) 36. Rd4 {[%emt 0:00:41] Threatens to win with Qf4.} Rg7 {[%emt 0:02:50]} (36... Rbc8 $142 37. Qg6 Bc6) 37. Qf4 {[%emt 0:00:13][%csl LRb8,LRh6]} Rgb7 {[%emt 0:00:03]} 38. Re3 {[%emt 0:00:01]} Qb2 {[%emt 0:00:06]} 39. Rg3 {[%emt 0:01:03]} (39. a6 $142 Rxb4 40. a7) 39... Re8 {[%emt 0:00:25]} 40. Qh4 {[%emt 0:01:39]} Bg7 {[%emt 0:01:26]} 41. Rdg4 {[%emt 0:00:22]} Qe5 {[%emt 0:00:40]} 42. Qh5 {[%emt 0:00:19]} Rd8 {[%emt 0:00:28]} 43. b5 {[%emt 0:00:06]} ({Less strong is} 43. Rxg7 Rxg7 44. Rxg7 (44. Qxh6+ Rh7 $18) 44... Kxg7 $16) 43... d4 {[%emt 0:00:07]} 44. c6 {[%emt 0:00:04]} Re7 {[%emt 0:00:03]} 45. Bd3 {[%emt 0:00:15]} (45. f4 $142 Qc7 46. Rxg7 $1 {[%mdl 512]} Rxg7 47. Qxh6+ Rh7 48. Qxf6+ Rg7 49. Rxg7 Qxg7 50. Qxd8+ Kh7 51. f6) 45... Qd6 {[%emt 0:00:21] [#]} 46. Kh2 {[%emt 0:00:17]} (46. Rxg7 $142 $1 {[%mdl 512]} Rxg7 47. Rxg7 Kxg7 48. Qg6+ Kh8 49. Qxh6+ Kg8 50. Bc4+ Qd5 51. Bxd5+ Rxd5 52. Qg6+ Kh8 53. Qxf6+ Kg8 54. Qg6+ Kf8 55. f6) 46... Rf8 {[%emt 0:00:08]} 47. Qh4 {[%emt 0:00:14]} Rd8 {[%emt 0:00:15]} 48. a6 {[%emt 0:00:12]} Rf8 {[%emt 0:00:18]} 49. Rxd4 {[%emt 0:00:03]} Qc7 {[%emt 0:00:07]} 50. Bc4 {[%emt 0:00:05]} Rd8 {[%emt 0:00:11]} 51. Rdg4 {[%emt 0:00:15]} (51. b6 $142 Qb8 52. c7 Rxc7 53. bxc7 Qxc7 54. Rdg4 Qe7 55. Rxg7 Qxg7 56. Rxg7) 51... Bf8 {[%emt 0:00:01]} 52. Qxf6+ {[%emt 0:00:04] White mates.} Bg7 {[%emt 0:00:06] [#]} 53. Rxg7 $1 {[%emt 0:00:10]} Rxg7 {[%emt 0:00:02]} 54. Qxh6+ {[%emt 0:00:01]} Rh7 {[%emt 0:00:01]} 55. Qf6+ {[%emt 0:00:04]} Rg7 {[%emt 0:00:01]} 56. b6 {[%emt 0:00:02][%cal Bb5b6,Bb6b7][%mdl 32]} Qe7 {[%emt 0:00:13]} 57. Qxg7+ {[%emt 0:00:08]} Qxg7 {[%emt 0:00:01]} 58. Rxg7 {[%emt 0:00:00]} Kxg7 {[%emt 0:00:03]} 59. b7 {[%emt 0:00:01] Weighted Error Value: White=0.64/Black=1.17} 1-0

[Event "FTX Crypto Cup MCCT 2022"]
[Site "Miami"]
[Date "2022.08.11"]
[Round "1.3"]
[White "Aronian, Levon"]
[Black "Le, Quang Liem"]
[Result "1/2-1/2"]
[ECO "A28"]
[WhiteElo "2775"]
[BlackElo "2722"]
[Annotator "TA"]
[PlyCount "132"]
[EventDate "2022.08.10"]
[EventType "tourn"]
[EventCountry "USA"]
[SourceTitle "playchess.com"]
[Source "ChessBase"]
[SourceQuality "1"]
[TimeControl "900+10"]

{[%evp 9,132,0,7,0,0,0,11,-14,-5,-14,10,14,11,8,10,10,42,47,75,41,131,72,58,35,100,58,74,66,61,76,100,100,103,80,89,94,65,49,97,88,97,102,96,60,68,56,90,89,87,79,78,61,68,68,64,64,61,33,49,0,0,0,0,0,0,0,0,0,0,0,0,0,0,0,0,0,0,0,0,0,0,0,0,0,0,0,0,0,0,0,0,0,0,0,0,0,0,0,0,0,0,0,0,0,0,0,0,0,0,0,0,0,0,0,0,0,0,0,0,0,0,0,0,0,0]} 1. c4 {[%emt 0:00:00]} Nf6 {[%emt 0:00:00]} 2. Nc3 {[%emt 0:00:02]} e5 {[%emt 0:00:01]} 3. Nf3 {[%emt 0:00:02][%cal Bg1f3,Bf3d2,Bd2b3][%mdl 32]} Nc6 {[%emt 0:00:01]} 4. e4 {[%emt 0:00:02]} Bb4 {[%emt 0:00:14]} 5. d3 {[%emt 0:00:01]} d6 {[%emt 0:00:02]} 6. Be2 {[%emt 0:00:01] A28: English Opening: Four Knights Variation.} a5 {[%emt 0:00:14] 6...Bg4 is setting a new trend.} 7. O-O {[%emt 0:00:07]} Bc5 {[%emt 0:00:23]} 8. Nd2 {[%emt 0:00:39] [#]} O-O $146 {[%emt 0:00:42]} ({Predecessor:} 8... Nd4 9. Nb3 Nxb3 10. axb3 c6 11. Kh1 Bd4 12. Bd2 Ra6 13. Qe1 Nd7 14. f4 Nc5 {0-1 (45) Zhao,J (2580)-Zhou,W (2592) Ningbo 2011}) 9. Nb3 {[%emt 0:00:03]} Ba7 {[%emt 0:00:03]} 10. Kh1 {[%emt 0:00:06]} Nd7 {[%emt 0:00:59]} 11. f4 {[%emt 0:00:12]} exf4 {[%emt 0:00:04]} 12. Bxf4 {[%emt 0:00:06]} Nd4 {[%emt 0:00:05]} 13. Nxa5 {[%emt 0:00:26]} f5 {[%emt 0:01:49]} 14. Nb3 {[%emt 0:00:13]} Ne5 {[%emt 0:00:57] [#]} (14... g5 $14 15. Bd2 f4) 15. c5 {[%emt 0:00:03]} ({White should try} 15. Nxd4 $1 Bxd4 16. Nb5) 15... Nxe2 $16 {[%emt 0:00:46]} 16. Qxe2 {[%emt 0:00:04] And now Bg3 would win.} fxe4 {[%emt 0:00:32]} (16... Ng6 $1 $14) 17. Nxe4 {[%emt 0:01:28]} Bg4 {[%emt 0:00:18]} 18. Qc2 {[%emt 0:00:03]} Ng6 {[%emt 0:00:33]} 19. Bg3 {[%emt 0:00:02][%cal Rc5d6]} Rxf1+ {[%emt 0:00:29]} 20. Rxf1 {[%emt 0:00:03][%cal Rc5d6]} d5 {[%emt 0:00:00]} 21. Nf2 {[%emt 0:00:37] White is much more active.} Bd7 {[%emt 0:00:06]} 22. d4 {[%emt 0:00:09]} Bb8 {[%emt 0:00:22]} 23. Nd3 {[%emt 0:00:21]} c6 {[%emt 0:01:01]} (23... Rxa2 $14 24. Nb4 (24. Qf2 Bb5 $11) 24... Bb5) 24. Bxb8 {[%emt 0:00:04]} Qxb8 {[%emt 0:00:00]} 25. a3 {[%emt 0:00:05]} Qc7 {[%emt 0:00:09]} 26. Nd2 {[%emt 0:00:40]} Re8 {[%emt 0:00:06]} 27. Qd1 {[%emt 0:00:25]} Qd8 {[%emt 0:01:05]} 28. Qf3 {[%emt 0:00:23]} Rf8 {[%emt 0:02:48] Against Qf7+} 29. Qe3 {[%emt 0:00:04]} Re8 {[%emt 0:00:04]} 30. Ne5 {[%emt 0:00:07]} Nxe5 {[%emt 0:00:06]} 31. dxe5 {[%emt 0:00:00]} Qe7 {[%emt 0:00:02]} 32. Re1 {[%emt 0:00:12]} Bf5 {[%emt 0:00:04][%cal Of5e4]} 33. Kg1 {[%emt 0:00:29]} Be4 {[%emt 0:01:25]} 34. Qd4 {[%emt 0:03:07]} (34. Nxe4 $14 Qxe5 35. Qg3 Qd4+ 36. Qf2 Rxe4 37. Qxd4 Rxd4 38. Re7) 34... Qxe5 $11 {[%emt 0:00:14] The position is equal.} 35. Qxe5 {[%emt 0:00:03]} Rxe5 {[%emt 0:00:00]} 36. Nxe4 {[%emt 0:00:32]} dxe4 {[%emt 0:00:00][%mdl 4096] Endgame KR-KR} 37. b4 {[%emt 0:00:01]} e3 {[%emt 0:00:50]} 38. Kf1 {[%emt 0:00:29]} Rf5+ {[%emt 0:00:14]} 39. Kg1 {[%emt 0:00:37]} Re5 {[%emt 0:00:02]} 40. g3 {[%emt 0:01:21]} Kf7 {[%emt 0:00:27]} 41. Kg2 {[%emt 0:00:32]} Ke6 $1 {[%emt 0:00:35]} 42. Kf3 {[%emt 0:00:03]} Kd5 $1 {[%emt 0:00:01]} 43. Rd1+ {[%emt 0:01:17]} Kc4 {[%emt 0:00:03]} 44. Ke2 {[%emt 0:00:00]} Rd5 {[%emt 0:00:41]} 45. Rf1 {[%emt 0:01:59]} Rd7 {[%emt 0:00:04] Against Rf7} 46. Kxe3 {[%emt 0:00:02]} Kb3 {[%emt 0:00:02]} ({Much less strong is} 46... Rd3+ 47. Ke4 $14) 47. b5 {[%emt 0:00:01]} cxb5 {[%emt 0:00:28]} 48. Rb1+ {[%emt 0:00:03]} Kc4 {[%emt 0:00:10] [#] Threatens to win with ...Rd3+.} 49. Rc1+ {[%emt 0:00:05]} Kb3 {[%emt 0:00:01]} 50. Rb1+ {[%emt 0:00:03]} Ka4 {[%emt 0:00:46]} 51. Rb4+ {[%emt 0:00:11]} Ka5 $1 {[%emt 0:00:01]} 52. Ke4 {[%emt 0:01:36]} Rd2 {[%emt 0:00:15]} 53. h4 {[%emt 0:00:04]} Rc2 {[%emt 0:01:12]} 54. Kd4 {[%emt 0:00:04]} h5 {[%emt 0:00:11]} 55. Rb3 {[%emt 0:00:19]} b6 {[%emt 0:00:35]} 56. cxb6 {[%emt 0:00:27]} Kxb6 {[%emt 0:00:00]} 57. Ke5 {[%emt 0:00:49] a4 is the strong threat.} Rc4 {[%emt 0:00:16]} 58. Kf5 {[%emt 0:01:02]} Rg4 {[%emt 0:00:09]} 59. Rb4 {[%emt 0:00:01]} g6+ {[%emt 0:01:05]} (59... Rxg3 $5 60. a4 g6+ 61. Kf6 Ka5 62. Rxb5+ Kxa4 $11) 60. Kf6 {[%emt 0:00:04] aiming for Rxg4.} Rxg3 {[%emt 0:00:01]} 61. a4 {[%emt 0:00:01]} Rg4 {[%emt 0:00:02]} 62. Rxb5+ {[%emt 0:00:05]} Ka6 {[%emt 0:00:00]} 63. Rg5 {[%emt 0:00:03]} Rxh4 {[%emt 0:00:03]} 64. Kxg6 {[%emt 0:00:06]} Rxa4 {[%emt 0:00:01]} 65. Kxh5 {[%emt 0:00:00]} Ra5 {[%emt 0:00:01]} 66. Rxa5+ {[%emt 0:00:02]} Kxa5 {[%emt 0:00:00] Weighted Error Value: White=0.07 (flawless) /Black=0.07 (flawless)} 1/2-1/2

[Event "FTX Crypto Cup MCCT 2022"]
[Site "Miami"]
[Date "2022.08.11"]
[Round "1.3"]
[White "Giri, Anish"]
[Black "Carlsen, Magnus"]
[Result "0-1"]
[ECO "C02"]
[WhiteElo "2760"]
[BlackElo "2864"]
[Annotator "TA"]
[PlyCount "68"]
[EventDate "2022.08.10"]
[EventType "tourn"]
[EventCountry "USA"]
[SourceTitle "playchess.com"]
[Source "ChessBase"]
[SourceQuality "1"]
[TimeControl "900+10"]

{[%evp 18,68,0,0,0,-6,-7,-11,0,0,0,-14,-15,-6,-11,-9,-14,-11,-12,-12,-7,-62,-39,-41,-56,-57,-33,-72,-42,-33,-18,-125,-108,-128,-119,-137,-81,-170,-179,-591,-589,-588,-588,-533,-566,-537,-560,-543,-427,-29983,-29984,-29998,-29999]} 1. e4 {[%emt 0:00:00][%cal Be2e4,Be4e5][%mdl 32]} e6 {[%emt 0:00:00]} 2. d4 {[%emt 0:00:02]} d5 {[%emt 0:00:02]} 3. e5 {[%emt 0:00:04]} c5 {[%emt 0:00:02]} 4. c3 {[%emt 0:00:01]} Nc6 {[%emt 0:00:01]} 5. Nf3 {[%emt 0:00:01]} Bd7 {[%emt 0:00:01]} 6. Be2 {[%emt 0:00:04]} Nge7 {[%emt 0:00:04]} 7. O-O {[%emt 0:00:38]} cxd4 {[%emt 0:00:02]} 8. cxd4 {[%emt 0:00:15]} Nf5 {[%emt 0:00:02]} 9. Nc3 {[%emt 0:00:15]} Rc8 {[%emt 0:00:03]} 10. Kh1 {[%emt 0:00:15]} a6 {[%emt 0:01:21] C02: French: Advance Variation.} 11. Bg5 {[%emt 0:00:23]} Qb6 {[%emt 0:04:59][%cal Rc6d4]} 12. Na4 {[%emt 0:00:08] [#]} Qa7 $146 {[%emt 0:00:48][%cal Rc6d4] The position is equal.} ({Predecessor:} 12... Qa5 13. Rc1 b5 14. Nc5 Bxc5 15. dxc5 Qxa2 16. Bd3 h6 17. Bd2 Qxb2 18. Bc3 Qa3 {0-1 (39) Garcia Medinilla,D-Tasic,V LSS email 2007}) 13. Be3 {[%emt 0:00:16]} Be7 {[%emt 0:00:47]} 14. a3 {[%emt 0:04:35]} b5 {[%emt 0:01:00]} 15. Nc3 {[%emt 0:00:08]} O-O {[%emt 0:00:06]} 16. Bd3 {[%emt 0:00:04]} Nxe3 {[%emt 0:00:03]} 17. fxe3 {[%emt 0:00:00]} b4 {[%emt 0:00:20]} 18. axb4 {[%emt 0:00:05]} Nxb4 {[%emt 0:00:03]} 19. e4 {[%emt 0:00:34]} (19. Be2 $11) 19... Nxd3 {[%emt 0:00:25]} 20. Qxd3 {[%emt 0:00:00]} dxe4 {[%emt 0:00:14]} 21. Nxe4 {[%emt 0:00:09]} h6 {[%emt 0:00:07] Prevents Nfg5.} 22. Rfe1 {[%emt 0:03:07]} ({Avoid the trap} 22. Qxa6 $2 Qxa6 23. Rxa6 Bb5 $19) 22... a5 {[%emt 0:00:15][%cal Ba6a5,Ba5a4][%mdl 32]} 23. Qd2 $1 {[%emt 0:01:20][%cal Oe4f6] Black must now prevent Nf6+!} Bc6 {[%emt 0:00:45]} 24. Qf4 {[%emt 0:01:03]} ({Don't blunder} 24. Qxa5 $2 Qxa5 25. Rxa5 Bb4 $19) (24. Nf6+ $11 Kh8 25. d5 (25. Rxa5 $2 Qb8 $19) 25... exd5 26. Nd4) 24... Qb8 {[%emt 0:00:43]} 25. Re2 {[%emt 0:00:40]} a4 {[%emt 0:00:07]} 26. Qg4 {[%emt 0:00:18][%cal Od4d5]} Qb5 {[%emt 0:00:44]} (26... Kh8 $142 27. Qf4 Qb3) 27. Rae1 {[%emt 0:01:03] [#]} (27. Rf2 $17) 27... Bb4 $1 $19 {[%emt 0:00:59]} 28. d5 $2 {[%emt 0:03:16]} (28. Nd6 Bxd6 29. exd6) 28... Bxe1 {[%emt 0:01:30] This bishop pair is nice.} 29. Nd4 {[%emt 0:00:09] [#]} Qd3 {[%emt 0:00:12]} 30. Rxe1 {[%emt 0:00:58]} (30. Nf6+ Kh8) 30... Bxd5 {[%emt 0:00:02]} 31. Nf6+ {[%emt 0:00:03]} Kh8 {[%emt 0:00:02]} 32. Nxd5 {[%emt 0:00:01]} Qd2 {[%emt 0:00:51][%cal Rd2e1]} 33. Rd1 {[%emt 0:00:05]} (33. Nf3 $19 Qxd5 34. Qxa4) 33... Rc1 {[%emt 0:00:03]} 34. Nc3 {[%emt 0:00:07]} Qe1+ {[%emt 0:00:04][%mdl 64] Back Rank.  Weighted Error Value: White=0.69/Black=0.13 (very precise)} 0-1